bitfinex/quotes_SOLUSD_20241024
["timestamp","ask_amount","ask_price","bid_price","bid_amount"]
[1729787957432,19.92767596,176.71,176.66,19.92767596]
[1729787957633,25.58697596,176.7,176.6,22.053]
[1729787957929,0.12549,176.68,176.64,19.92767596]
[1729787959030,25.58697596,176.7,176.64,19.92767596]
[1729787960034,0.12549,176.68,176.61,43.776884]
[1729787960214,0.12549,176.68,176.64,19.92767596]
[1729787960419,25.58697596,176.7,176.64,19.92767596]
[1729787960728,5.6588,176.72,176.66,19.92767596]
[1729787960925,25.58647596,176.72,176.66,19.92767596]
[1729787961429,25.58647596,176.72,176.61,43.776884]
[1729787961430,0.12549,176.69,176.65,19.92767596]
[1729787961734,0.12549,176.69,176.64,19.92767596]
[1729787962429,0.12549,176.69,176.61,43.776884]
[1729787962430,20.05316596,176.69,176.61,43.776884]
[1729787962622,20.05316596,176.69,176.64,19.92767596]
[1729787962822,0.12549,176.69,176.64,19.92767596]
[1729787963738,0.12549,176.69,176.65,19.92767596]
[1729787965431,0.12549,176.69,176.64,19.92767596]
[1729787965616,20.05316596,176.67,176.61,19.92767596]
[1729787965819,0.12549,176.67,176.63,19.92767596]
[1729787967721,19.92767596,176.69,176.63,19.92767596]
[1729787967922,19.92767596,176.7,176.65,19.92767596]
[1729787968238,0.12549,176.69,176.64,19.92767596]
[1729787969442,20.05316596,176.69,176.64,19.92767596]
[1729787970250,20.05316596,176.69,176.63,19.92767596]
[1729787972842,19.92767596,176.68,176.63,19.92767596]
[1729787973218,19.92767596,176.68,176.63,9.96383798]
[1729787973436,19.92767596,176.68,176.63,19.92767596]
[1729787975625,20.05316596,176.64,176.58,5.88232698]
[1729787975834,20.05316596,176.64,176.58,19.92767596]
[1729787976031,19.92767596,176.63,176.58,19.92767596]
[1729787976346,19.92767596,176.64,176.58,19.92767596]
[1729787976554,0.12549,176.63,176.56,16.2535]
[1729787976744,19.92767596,176.64,176.55,5.88529308]
[1729787976745,19.92767596,176.61,176.55,5.88529308]
[1729787976950,19.92767596,176.61,176.56,19.92767596]
[1729787977152,0.12549,176.6,176.55,19.92767596]
[1729787977449,20.05316596,176.6,176.55,19.92767596]
[1729787978044,20.05316596,176.6,176.52,16.243]
[1729787978248,20.05316596,176.58,176.52,19.92767596]
[1729787978849,0.12549,176.56,176.51,19.92767596]
[1729787979229,20.05316596,176.56,176.48,16.243]
[1729787979551,20.05316596,176.56,176.5,19.92767596]
[1729787979952,0.12549,176.56,176.51,19.92767596]
[1729787980137,0.12549,176.56,176.48,16.243]
[1729787980138,19.92767596,176.55,176.48,16.243]
[1729787980331,19.92767596,176.56,176.5,19.92767596]
[1729787980533,0.12549,176.55,176.51,19.92767596]
[1729787980731,0.12549,176.55,176.5,19.92767596]
[1729787981953,10.08932798,176.55,176.48,16.243]
[1729787982153,9.96383798,176.53,176.47,25.81572087]
[1729787982327,19.92767596,176.53,176.45,6.3587]
[1729787982528,19.92767596,176.52,176.44,15.4093]
[1729787982753,19.92767596,176.52,176.46,19.92767596]
[1729787982947,19.92767596,176.52,176.44,15.4093]
[1729787982948,19.92767596,176.52,176.47,19.92767596]
[1729787984149,19.92767596,176.51,176.46,19.92767596]
[1729787984554,19.92767596,176.5,176.44,15.4093]
[1729787984737,19.92767596,176.5,176.45,19.92767596]
[1729787985145,19.92767596,176.5,176.44,19.92767596]
[1729787986655,19.92767596,176.5,176.45,19.92767596]
[1729787987446,19.92767596,176.51,176.45,19.92767596]
[1729787987768,19.92767596,176.52,176.46,19.92767596]
[1729787987939,20.05316596,176.53,176.47,19.92767596]
[1729787988831,20.05316596,176.53,176.48,19.92767596]
[1729787989257,20.05316596,176.53,176.47,19.92767596]
[1729787989455,0.12549,176.53,176.48,19.92767596]
[1729787989954,0.12549,176.52,176.48,19.92767596]
[1729787990339,20.05316596,176.54,176.48,19.92767596]
[1729787991336,19.92767596,176.53,176.42,44.027864]
[1729787991531,19.92767596,176.52,176.46,19.92767596]
[1729787991941,19.92767596,176.52,176.47,19.92767596]
[1729787993144,19.92767596,176.52,176.44,23.776884]
[1729787993350,0.12549,176.54,176.44,23.776884]
[1729787993351,19.92767596,176.51,176.46,19.92767596]
[1729787994735,20.05316596,176.53,176.47,19.92767596]
[1729787995659,0.12549,176.5,176.42,20.0]
[1729787995861,0.12549,176.5,176.45,19.92767596]
[1729787997540,0.12549,176.5,176.46,19.92767596]
[1729787999948,0.12549,176.5,176.45,19.92767596]
[1729788000956,20.05316596,176.5,176.43,23.776884]
[1729788001158,20.05316596,176.5,176.44,19.92767596]
[1729788001564,20.05316596,176.5,176.42,23.776884]
[1729788001565,19.92767596,176.48,176.42,23.776884]
[1729788001744,19.92767596,176.48,176.42,19.92767596]
[1729788002056,0.12549,176.47,176.42,19.92767596]
[1729788002271,20.05316596,176.47,176.41,19.92767596]
[1729788002775,20.05316596,176.47,176.4,16.1534]
[1729788002971,19.92767596,176.46,176.41,19.92767596]
[1729788003863,19.92767596,176.45,176.37,5.88432857]
[1729788004045,19.92767596,176.45,176.39,19.92767596]
[1729788004658,26.04217,176.5,176.41,19.92767596]
[1729788004864,0.12549,176.46,176.41,19.92767596]
[1729788005962,0.12549,176.46,176.34,8.24949205]
[1729788005963,20.05316596,176.45,176.35,43.776884]
[1729788006149,0.12549,176.43,176.39,19.92767596]
[1729788006565,22.1815,176.46,176.35,43.776884]
[1729788006566,36.44207596,176.46,176.35,43.776884]
[1729788006755,0.12549,176.44,176.39,19.92767596]
[1729788008168,0.12549,176.44,176.4,19.92767596]
[1729788009756,0.12549,176.46,176.4,19.92767596]
[1729788010067,20.05316596,176.46,176.4,19.92767596]
[1729788011065,16.4305,176.5,176.43,19.92767596]
[1729788011248,19.92767596,176.49,176.43,19.92767596]
[1729788011567,0.12549,176.48,176.44,19.92767596]
[1729788012167,19.92767596,176.51,176.46,19.92767596]
[1729788012349,5.6644,176.54,176.46,19.92767596]
[1729788012551,23.2498,176.55,176.49,19.92767596]
[1729788012749,23.2498,176.55,176.4,79.71070384]
[1729788012750,19.92767596,176.53,176.48,19.92767596]
[1729788013246,0.12549,176.52,176.48,19.92767596]
[1729788013465,20.05316596,176.5,176.4,43.776884]
[1729788013647,0.12549,176.5,176.45,19.92767596]
[1729788013974,19.92767596,176.52,176.46,19.92767596]
[1729788014157,0.12549,176.51,176.47,19.92767596]
[1729788015371,0.12549,176.51,176.46,19.92767596]
[1729788015664,19.92767596,176.5,176.45,19.92767596]
[1729788015869,0.12549,176.49,176.45,19.92767596]
[1729788016164,0.12549,176.49,176.4,123.48758784]
[1729788016165,0.12549,176.47,176.42,19.92767596]
[1729788017159,0.12549,176.47,176.43,19.92767596]
[1729788018176,0.12549,176.49,176.44,19.92767596]
[1729788018362,0.12549,176.49,176.45,19.92767596]
[1729788019169,19.92767596,176.5,176.39,16.1547]
[1729788019380,20.05316596,176.49,176.44,19.92767596]
[1729788019587,0.12549,176.49,176.44,19.92767596]
[1729788020970,0.12549,176.49,176.39,16.1547]
[1729788020971,0.12549,176.47,176.43,19.92767596]
[1729788021971,0.12549,176.47,176.42,19.92767596]
[1729788022972,19.92767596,176.44,176.36,5.88538282]
[1729788023279,20.05316596,176.42,176.36,19.92767596]
[1729788024658,19.92767596,176.41,176.35,35.37217596]
[1729788024875,19.92767596,176.41,176.35,34.87217596]
[1729788025168,19.92767596,176.41,176.32,6.4859899]
[1729788025558,19.92767596,176.41,176.35,19.92767596]
[1729788028677,26.04347,176.46,176.37,19.92767596]
[1729788028866,0.12549,176.42,176.37,19.92767596]
[1729788029070,0.12549,176.42,176.33,23.776884]
[1729788029372,0.12549,176.42,176.37,19.92767596]
[1729788032275,0.12549,176.39,176.32,6.4859899]
[1729788032475,0.12549,176.39,176.34,19.92767596]
[1729788032659,20.05316596,176.39,176.32,0.5979635]
[1729788032981,0.12549,176.37,176.32,20.52563946]
[1729788033354,0.12549,176.37,176.33,19.92767596]
[1729788033679,5.79449,176.4,176.33,19.92767596]
[1729788033859,19.92767596,176.39,176.33,19.92767596]
[1729788034357,22.3331,176.45,176.36,19.92767596]
[1729788034563,19.92767596,176.43,176.37,19.92767596]
[1729788035174,19.92767596,176.44,176.38,19.92767596]
[1729788035485,25.667,176.46,176.38,19.92767596]
[1729788035685,19.92767596,176.44,176.38,19.92767596]
[1729788035858,0.12549,176.43,176.38,19.92767596]
[1729788036665,19.92767596,176.45,176.39,19.92767596]
[1729788037485,19.92767596,176.46,176.4,19.92767596]
[1729788037978,0.12549,176.45,176.4,19.92767596]
[1729788040360,0.12549,176.45,176.4,19.92767596]
[1729788040563,20.05316596,176.45,176.4,19.92767596]
[1729788040772,20.05316596,176.45,176.39,19.92767596]
[1729788042388,5.667,176.46,176.4,19.92767596]
[1729788042792,0.12549,176.45,176.4,19.92767596]
[1729788042989,20.05316596,176.45,176.4,19.92767596]
[1729788044086,0.12549,176.48,176.42,19.92767596]
[1729788044282,25.71966596,176.48,176.42,19.92767596]
[1729788044875,19.92767596,176.47,176.41,19.92767596]
[1729788045073,0.12549,176.45,176.41,19.92767596]
[1729788045872,20.05316596,176.45,176.4,19.92767596]
[1729788046274,20.05316596,176.45,176.39,19.92767596]
[1729788047894,20.05316596,176.45,176.4,19.92767596]
[1729788048984,0.12549,176.45,176.4,19.92767596]
[1729788049801,0.12549,176.45,176.41,19.92767596]
[1729788052482,35.99437171,176.53,176.44,19.92767596]
[1729788052699,19.92767596,176.51,176.45,19.92767596]
[1729788052986,0.12549,176.5,176.45,19.92767596]
[1729788053290,25.59327596,176.51,176.45,19.92767596]
[1729788053680,20.05316596,176.5,176.45,19.92767596]
[1729788054397,25.71906596,176.5,176.45,19.92767596]
[1729788055581,20.05316596,176.5,176.45,19.92767596]
[1729788055791,0.12549,176.5,176.45,19.92767596]
[1729788057990,0.12549,176.49,176.44,19.92767596]
[1729788058490,11.7441,176.52,176.45,19.92767596]
[1729788058491,0.12549,176.51,176.45,19.92767596]
[1729788058693,19.92767596,176.5,176.44,19.92767596]
[1729788060315,0.12549,176.49,176.38,15.4331]
[1729788060480,0.12549,176.43,176.38,15.4331]
[1729788060684,0.12549,176.43,176.38,35.36077596]
[1729788061023,0.12549,176.43,176.38,15.4331]
[1729788061178,0.12549,176.43,176.34,16.0318]
[1729788061380,0.12549,176.43,176.38,19.92767596]
[1729788061802,20.05316596,176.41,176.34,16.0318]
[1729788062002,20.05316596,176.39,176.34,19.92767596]
[1729788062700,0.12549,176.39,176.35,19.92767596]
[1729788063286,0.12549,176.39,176.33,5.88605362]
[1729788063486,0.12549,176.39,176.35,19.92767596]
[1729788064080,0.12549,176.39,176.34,19.92767596]
[1729788064611,20.05316596,176.38,176.33,5.88605362]
[1729788064788,20.05316596,176.38,176.32,0.5979635]
[1729788064985,20.05316596,176.38,176.32,20.52563946]
[1729788065290,19.92767596,176.37,176.32,20.52563946]
[1729788065903,20.05316596,176.38,176.32,20.52563946]
[1729788066109,20.05316596,176.38,176.33,19.92767596]
[1729788066598,20.05316596,176.38,176.32,20.52563946]
[1729788067309,0.12549,176.36,176.32,0.5979635]
[1729788068921,20.25098,176.43,176.33,19.92767596]
[1729788069119,19.92767596,176.43,176.38,19.92767596]
[1729788069287,19.92767596,176.43,176.37,19.92767596]
[1729788069485,0.12549,176.42,176.37,19.92767596]
[1729788070108,0.12549,176.43,176.38,19.92767596]
[1729788070347,0.12549,176.43,176.38,31.25299598]
[1729788071400,22.2014,176.46,176.4,31.25299598]
[1729788071401,47.78729598,176.46,176.4,31.25299598]
[1729788071591,0.12549,176.45,176.41,31.25299598]
[1729788071793,31.25299598,176.47,176.42,31.25299598]
[1729788072008,31.25299598,176.48,176.43,31.25299598]
[1729788072209,31.25299598,176.46,176.38,23.902374]
[1729788072514,31.25299598,176.46,176.4,31.25299598]
[1729788072909,0.12549,176.45,176.4,31.25299598]
[1729788073114,0.12549,176.43,176.38,31.25299598]
[1729788073316,0.12549,176.43,176.39,31.25299598]
[1729788075317,21.6981,176.5,176.42,31.25299598]
[1729788075504,0.12549,176.48,176.43,31.25299598]
[1729788075705,31.25299598,176.47,176.42,31.25299598]
[1729788077816,31.25299598,176.47,176.41,31.25299598]
[1729788078497,31.25299598,176.47,176.42,31.25299598]
[1729788081819,0.12549,176.47,176.43,31.25299598]
[1729788084824,31.25299598,176.47,176.42,31.25299598]
[1729788085120,0.12549,176.46,176.42,31.25299598]
[1729788087927,0.12549,176.46,176.41,31.25299598]
[1729788088221,0.12549,176.46,176.42,31.25299598]
[1729788090330,20.11910204,176.48,176.42,19.99361204]
[1729788095603,20.11910204,176.48,176.43,19.99361204]
[1729788096428,20.11910204,176.48,176.42,19.99361204]
[1729788098505,0.12549,176.48,176.43,19.99361204]
[1729788098705,22.3143,176.54,176.47,19.99361204]
[1729788098911,42.30791204,176.54,176.49,19.99361204]
[1729788100035,20.12549,176.53,176.49,19.99361204]
[1729788100350,20.0,176.53,176.49,19.99361204]
[1729788101026,0.12549,176.52,176.49,19.99361204]
[1729788101229,0.12549,176.52,176.48,19.99361204]
[1729788101528,20.11910204,176.52,176.47,19.99361204]
[1729788101731,20.11910204,176.52,176.46,19.99361204]
[1729788101930,19.99361204,176.48,176.41,20.0]
[1729788102133,0.12549,176.46,176.4,6.493]
[1729788102326,0.12549,176.46,176.42,19.99361204]
[1729788108322,12.1256,176.51,176.44,19.99361204]
[1729788108524,19.99361204,176.52,176.46,19.99361204]
[1729788109121,15.7208,176.54,176.48,19.99361204]
[1729788109321,35.71441204,176.54,176.48,19.99361204]
[1729788109635,0.12549,176.53,176.48,19.99361204]
[1729788109939,20.12549,176.53,176.48,19.99361204]
[1729788110114,40.11910204,176.53,176.48,19.99361204]
[1729788111849,40.11910204,176.53,176.47,19.99361204]
[1729788113937,40.11910204,176.53,176.48,19.99361204]
[1729788114235,20.12549,176.53,176.48,19.99361204]
[1729788115227,19.99361204,176.49,176.42,20.0]
[1729788115433,0.12549,176.48,176.44,39.99361204]
[1729788115947,0.12549,176.48,176.45,19.99361204]
[1729788117223,0.12549,176.48,176.44,39.99361204]
[1729788117423,0.12549,176.48,176.44,19.99361204]
[1729788119335,20.11910204,176.48,176.42,19.99361204]
[1729788120735,0.12549,176.48,176.42,19.99361204]
[1729788120951,20.11910204,176.48,176.42,19.99361204]
[1729788122949,0.12549,176.48,176.42,19.99361204]
[1729788123153,20.11910204,176.48,176.42,19.99361204]
[1729788123442,0.12549,176.45,176.4,19.99361204]
[1729788123629,0.12549,176.45,176.41,19.99361204]
[1729788124020,0.12549,176.47,176.42,19.99361204]
[1729788126225,20.11910204,176.47,176.42,19.99361204]
[1729788126548,19.99361204,176.47,176.42,19.99361204]
[1729788127048,0.12549,176.46,176.41,19.99361204]
[1729788127848,20.11910204,176.46,176.4,20.0]
[1729788128149,20.11910204,176.46,176.41,19.99361204]
[1729788129941,20.11910204,176.46,176.39,15.9313]
[1729788130149,20.11910204,176.46,176.4,39.99361204]
[1729788130373,20.11910204,176.46,176.41,19.99361204]
[1729788130551,20.11910204,176.46,176.38,20.0]
[1729788130742,20.11910204,176.46,176.4,19.99361204]
[1729788131944,19.99361204,176.43,176.37,5.88791876]
[1729788132147,0.12549,176.42,176.38,19.99361204]
[1729788132346,0.12549,176.42,176.33,21.38935013]
[1729788132544,20.11910204,176.42,176.36,19.99361204]
[1729788135446,0.12549,176.42,176.37,19.99361204]
[1729788136151,16.5392,176.45,176.4,19.99361204]
[1729788136339,26.29621204,176.47,176.42,19.99361204]
[1729788136541,0.12549,176.46,176.41,19.99361204]
[1729788136848,31.96291204,176.47,176.41,19.99361204]
[1729788137249,0.12549,176.46,176.41,19.99361204]
[1729788137943,0.12549,176.46,176.42,19.99361204]
[1729788138262,15.0211,176.49,176.45,19.99361204]
[1729788138447,20.0,176.5,176.45,19.99361204]
[1729788138842,25.65921204,176.51,176.46,19.99361204]
[1729788139047,16.1327,176.54,176.49,19.99361204]
[1729788139266,36.12631204,176.54,176.48,19.99361204]
[1729788139567,19.99361204,176.53,176.48,19.99361204]
[1729788139776,0.12549,176.52,176.47,19.99361204]
[1729788140063,19.99361204,176.53,176.47,19.99361204]
[1729788140655,0.12549,176.52,176.47,19.99361204]
[1729788142266,5.79049,176.52,176.47,19.99361204]
[1729788142446,25.79019,176.53,176.48,19.99361204]
[1729788142764,45.78380204,176.53,176.47,19.99361204]
[1729788144144,20.11910204,176.49,176.44,19.99361204]
[1729788144361,20.11910204,176.49,176.43,19.99361204]
[1729788145055,20.11910204,176.49,176.44,19.99361204]
[1729788145567,0.12549,176.49,176.44,19.99361204]
[1729788146569,0.12549,176.49,176.45,19.99361204]
[1729788148242,0.12549,176.49,176.44,19.99361204]
[1729788148674,20.11910204,176.49,176.44,19.99361204]
[1729788149453,25.78510204,176.49,176.44,19.99361204]
[1729788149977,0.12549,176.49,176.44,19.99361204]
[1729788150874,19.99361204,176.49,176.44,19.99361204]
[1729788151081,0.12549,176.48,176.44,19.99361204]
[1729788151577,0.12549,176.48,176.41,20.0]
[1729788151876,0.12549,176.48,176.43,19.99361204]
[1729788153469,19.99361204,176.47,176.41,19.99361204]
[1729788153850,0.12549,176.45,176.41,19.99361204]
[1729788155567,0.12549,176.45,176.4,19.99361204]
[1729788156377,0.12549,176.45,176.41,19.99361204]
[1729788158265,0.12549,176.45,176.37,20.0]
[1729788158575,0.12549,176.45,176.4,19.99361204]
[1729788160164,20.11910204,176.45,176.4,19.99361204]
[1729788161165,20.11910204,176.45,176.39,19.99361204]
[1729788161684,20.11910204,176.45,176.37,20.0]
[1729788161861,20.11910204,176.45,176.39,19.99361204]
[1729788162267,0.12549,176.43,176.38,19.99361204]
[1729788162578,19.99361204,176.42,176.34,5.89029908]
[1729788162781,0.12549,176.41,176.37,19.99361204]
[1729788162982,0.12549,176.41,176.34,5.89029908]
[1729788162983,20.11910204,176.41,176.35,19.99361204]
[1729788163481,0.12549,176.41,176.36,19.99361204]
[1729788165562,25.66171204,176.43,176.38,19.99361204]
[1729788166081,0.12549,176.42,176.38,19.99361204]
[1729788166880,0.12549,176.42,176.31,101.91400257]
[1729788166881,19.99361204,176.45,176.39,19.99361204]
[1729788167065,0.12549,176.44,176.39,19.99361204]
[1729788167888,20.12549,176.47,176.39,19.99361204]
[1729788168182,0.12549,176.44,176.39,19.99361204]
[1729788168566,0.12549,176.42,176.34,20.0]
[1729788168778,0.12549,176.42,176.37,19.99361204]
[1729788168984,0.12549,176.42,176.4,19.99361204]
[1729788169180,0.12549,176.44,176.39,19.99361204]
[1729788170473,20.11910204,176.44,176.38,19.99361204]
[1729788173682,0.12549,176.47,176.39,19.99361204]
[1729788173889,19.99361204,176.46,176.4,19.99361204]
[1729788174190,19.99361204,176.46,176.37,16.6655]
[1729788174191,19.99361204,176.46,176.41,19.99361204]
[1729788174392,0.12549,176.45,176.41,19.99361204]
[1729788174988,0.12549,176.45,176.4,19.99361204]
[1729788176085,20.11910204,176.45,176.4,19.99361204]
[1729788178594,20.11910204,176.46,176.4,19.99361204]
[1729788179687,20.11910204,176.46,176.34,22.19654896]
[1729788179688,0.12549,176.44,176.34,22.19654896]
[1729788179883,0.12549,176.44,176.32,0.5979635]
[1729788179884,19.99361204,176.37,176.32,0.5979635]
[1729788180293,20.11910204,176.38,176.32,20.59157554]
[1729788180878,20.11910204,176.38,176.32,0.5979635]
[1729788181180,20.11910204,176.38,176.32,20.59157554]
[1729788182182,25.78880204,176.38,176.32,20.59157554]
[1729788182879,19.99361204,176.37,176.32,20.59157554]
[1729788183296,19.99361204,176.36,176.32,0.5979635]
[1729788183689,5.6696,176.38,176.32,0.5979635]
[1729788183690,20.11910204,176.37,176.32,0.5979635]
[1729788184083,20.11910204,176.37,176.32,20.59157554]
[1729788184279,19.99361204,176.33,176.32,0.5979635]
[1729788184485,40.11910204,176.33,176.32,0.5979635]
[1729788185386,40.37008204,176.33,176.32,0.5979635]
[1729788186277,0.12549,176.33,176.32,0.5979635]
[1729788186486,20.11910204,176.33,176.32,0.5979635]
[1729788189202,20.24459204,176.33,176.32,0.5979635]
[1729788189502,45.91569204,176.33,176.32,0.5979635]
[1729788190705,46.04118204,176.33,176.32,0.5979635]
[1729788190896,69.81806604,176.33,176.32,0.5979635]
[1729788191091,0.12549,176.3,176.2,15.4664]
[1729788191292,0.12549,176.24,176.2,15.4664]
[1729788191800,0.12549,176.23,176.18,19.99361204]
[1729788191994,0.12549,176.23,176.16,22.7828]
[1729788191995,19.99361204,176.25,176.19,19.99361204]
[1729788192199,19.99361204,176.26,176.21,19.99361204]
[1729788192395,19.99361204,176.27,176.22,19.99361204]
[1729788192783,0.12549,176.26,176.22,19.99361204]
[1729788193506,0.12549,176.26,176.21,19.99361204]
[1729788194308,0.12549,176.25,176.17,20.0]
[1729788194518,0.25098,176.3,176.15,2.79741034]
[1729788194519,19.99361204,176.21,176.15,0.5979635]
[1729788194689,20.0,176.26,176.19,19.99361204]
[1729788195012,0.12549,176.24,176.19,19.99361204]
[1729788196309,19.99361204,176.24,176.18,19.99361204]
[1729788196515,0.12549,176.23,176.19,19.99361204]
[1729788196807,19.99361204,176.28,176.16,20.0]
[1729788196998,0.12549,176.25,176.21,19.99361204]
[1729788197200,19.99361204,176.28,176.22,19.99361204]
[1729788197386,20.0,176.3,176.23,19.99361204]
[1729788197589,19.99361204,176.29,176.24,19.99361204]
[1729788198002,20.11910204,176.3,176.25,19.99361204]
[1729788199001,20.11910204,176.3,176.24,19.99361204]
[1729788199185,0.12549,176.25,176.18,20.0]
[1729788199391,20.11910204,176.25,176.19,19.99361204]
[1729788200708,26.04857,176.3,176.19,19.99361204]
[1729788200903,20.11910204,176.26,176.2,19.99361204]
[1729788201212,0.12549,176.26,176.22,19.99361204]
[1729788202411,31.31206532,176.27,176.22,31.31206532]
[1729788202808,0.12549,176.26,176.21,31.31206532]
[1729788205111,0.12549,176.24,176.2,31.31206532]
[1729788205912,31.31206532,176.27,176.21,31.31206532]
[1729788206096,31.31206532,176.27,176.22,31.31206532]
[1729788206294,0.12549,176.26,176.21,31.31206532]
[1729788206706,31.43755532,176.26,176.21,31.31206532]
[1729788207290,0.12549,176.26,176.21,31.31206532]
[1729788207691,0.12549,176.26,176.22,31.31206532]
[1729788208005,0.12549,176.27,176.22,31.31206532]
[1729788209529,0.12549,176.25,176.17,23.776884]
[1729788209722,0.12549,176.23,176.19,31.31206532]
[1729788210301,0.12549,176.25,176.2,31.31206532]
[1729788213707,31.43755532,176.25,176.19,31.31206532]
[1729788214819,0.12549,176.23,176.19,31.31206532]
[1729788215120,0.12549,176.23,176.16,20.0]
[1729788215324,0.12549,176.23,176.19,31.31206532]
[1729788215904,0.12549,176.23,176.18,31.31206532]
[1729788216624,0.12549,176.23,176.16,20.0]
[1729788216827,0.12549,176.23,176.18,31.31206532]
[1729788217122,31.31206532,176.23,176.17,31.31206532]
[1729788217314,0.12549,176.22,176.17,31.31206532]
[1729788218723,0.12549,176.22,176.16,20.0]
[1729788218920,0.12549,176.22,176.17,31.31206532]
[1729788219813,0.12549,176.21,176.16,51.31206532]
[1729788220011,0.12549,176.21,176.17,31.31206532]
[1729788221108,0.12549,176.21,176.18,31.31206532]
[1729788221424,0.12549,176.21,176.17,31.31206532]
[1729788221629,0.12549,176.23,176.18,31.31206532]
[1729788222613,0.12549,176.23,176.19,31.31206532]
[1729788222817,31.31206532,176.25,176.19,31.31206532]
[1729788223414,31.31206532,176.26,176.2,31.31206532]
[1729788223615,31.31206532,176.27,176.16,20.0]
[1729788223823,0.12549,176.26,176.21,31.31206532]
[1729788224541,0.12549,176.26,176.21,20.0405643]
[1729788224829,6.2051,176.28,176.21,20.0405643]
[1729788225033,20.0,176.3,176.24,20.0405643]
[1729788225034,20.0405643,176.3,176.24,20.0405643]
[1729788225410,0.12549,176.29,176.24,20.0405643]
[1729788226021,20.0405643,176.29,176.24,20.0405643]
[1729788226223,0.12549,176.28,176.24,20.0405643]
[1729788226435,36.2741643,176.31,176.26,20.0405643]
[1729788226612,5.6713,176.33,176.27,20.0405643]
[1729788226923,20.0405643,176.32,176.26,20.0405643]
[1729788227327,0.12549,176.31,176.26,20.0405643]
[1729788227727,25.6708,176.34,176.27,20.0405643]
[1729788227940,40.0405643,176.34,176.28,20.0405643]
[1729788228917,0.12549,176.33,176.28,20.0405643]
[1729788229117,0.12549,176.33,176.29,20.0405643]
[1729788229740,15.6716,176.39,176.31,20.0405643]
[1729788229931,20.0405643,176.37,176.31,20.0405643]
[1729788230134,0.12549,176.36,176.31,20.0405643]
[1729788230637,20.0405643,176.37,176.31,20.0405643]
[1729788230808,20.0405643,176.37,176.23,0.2]
[1729788230809,20.0405643,176.37,176.32,20.0405643]
[1729788231517,0.12549,176.36,176.32,20.0405643]
[1729788233935,5.6698,176.38,176.33,20.0405643]
[1729788234235,0.12549,176.37,176.33,20.0405643]
[1729788234427,0.12549,176.37,176.34,20.0405643]
[1729788235232,2.27098644,176.49,176.36,40.0405643]
[1729788235466,25.7062643,176.5,176.44,20.0405643]
[1729788235734,20.0405643,176.49,176.43,20.0405643]
[1729788236131,0.12549,176.48,176.43,20.0405643]
[1729788236328,0.12549,176.48,176.43,31.23685772]
[1729788236940,20.12549,176.48,176.43,31.23685772]
[1729788237344,25.79189,176.48,176.43,31.23685772]
[1729788238126,57.02874772,176.48,176.42,31.23685772]
[1729788238335,57.02874772,176.48,176.41,31.23685772]
[1729788238534,57.02874772,176.48,176.35,20.0]
[1729788238754,57.02874772,176.48,176.41,31.23685772]
[1729788239241,57.02874772,176.48,176.42,31.23685772]
[1729788239846,57.02874772,176.48,176.43,31.23685772]
[1729788240429,57.02874772,176.48,176.42,31.23685772]
[1729788241739,31.23685772,176.44,176.36,24.076884]
[1729788241927,31.36234772,176.43,176.37,31.23685772]
[1729788242840,0.12549,176.43,176.38,31.23685772]
[1729788244642,0.12549,176.43,176.4,0.3]
[1729788246524,0.12549,176.44,176.42,31.23685772]
[1729788246729,36.90345772,176.48,176.43,31.23685772]
[1729788247229,0.12549,176.47,176.43,31.23685772]
[1729788247731,0.12549,176.47,176.43,31.53685772]
[1729788248254,0.12549,176.47,176.43,0.3]
[1729788248552,20.0,176.48,176.43,31.53685772]
[1729788248760,0.12549,176.47,176.43,31.53685772]
[1729788248926,0.12549,176.47,176.43,31.23685772]
[1729788249350,31.36234772,176.47,176.42,31.23685772]
[1729788249531,0.12549,176.47,176.42,31.23685772]
[1729788249832,0.12549,176.47,176.43,31.23685772]
[1729788251944,0.12549,176.47,176.44,31.23685772]
[1729788252344,0.12549,176.47,176.43,31.23685772]
[1729788256457,31.23685772,176.59,176.46,62.47371544]
[1729788256755,36.89995772,176.58,176.52,31.23685772]
[1729788256959,36.89995772,176.58,176.53,31.23685772]
[1729788257148,36.89995772,176.58,176.45,43.902374]
[1729788257354,0.12549,176.57,176.45,43.902374]
[1729788257543,0.12549,176.57,176.52,31.23685772]
[1729788258057,20.0,176.57,176.52,31.23685772]
[1729788258545,0.12549,176.56,176.52,31.23685772]
[1729788259452,0.12549,176.56,176.45,43.902374]
[1729788259661,0.12549,176.56,176.52,31.23685772]
[1729788260659,0.12549,176.54,176.45,20.0]
[1729788260850,0.12549,176.51,176.44,15.2623]